[Event "Titled Tuesday Blitz April 26 Early 2022"]
[White "Reprintsev, Alexander"]
[Black "Pourkashiyan, Atousa"]
[WhiteFideId "14100541"]
[BlackFideId "12502014"]
[WhiteElo "2108"]
[BlackElo "2247"]
[Result "1-0"]
[Round "11"]
[TimeControl "180+1"]
[Date "2022.04.26"]
[WhiteClock "0:01:44"]
[BlackClock "0:00:56"]

1. e4 {[%clk 0:03:00]}  c5 {[%clk 0:02:27]} 2. b3 {[%clk 0:03:00]}  Nc6 {[%clk 0:02:25]} 3. Bb2 {[%clk 0:02:51]}  e6 {[%clk 0:02:24]} 4. Qe2 {[%clk 0:02:48]}  Nf6 {[%clk 0:02:22]} 5. e5 {[%clk 0:02:48]}  Nd5 {[%clk 0:02:22]} 6. Nf3 {[%clk 0:02:49]}  Be7 {[%clk 0:02:20]} 7. g3 {[%clk 0:02:49]}  O-O {[%clk 0:02:20]} 8. Bg2 {[%clk 0:02:49]}  d6 {[%clk 0:02:20]} 9. exd6 {[%clk 0:02:46]}  Qxd6 {[%clk 0:02:14]} 10. Na3 {[%clk 0:02:46]}  Ndb4 {[%clk 0:02:10]} 11. O-O {[%clk 0:02:45]}  Nd4 {[%clk 0:02:02]} 12. Nxd4 {[%clk 0:02:44]}  cxd4 {[%clk 0:02:03]} 13. Nb5 {[%clk 0:02:39]}  Qd8 {[%clk 0:01:59]} 14. Nxd4 {[%clk 0:02:39]}  Bf6 {[%clk 0:01:57]} 15. Qc4 {[%clk 0:02:32]}  Nxc2 {[%clk 0:01:48]} 16. Nc6 {[%clk 0:02:14]}  Qxd2 {[%clk 0:01:33]} 17. Bxf6 {[%clk 0:02:10]}  bxc6 {[%clk 0:01:33]} 18. Rad1 {[%clk 0:02:08]}  Qh6 {[%clk 0:01:25]} 19. Be7 {[%clk 0:02:08]}  Re8 {[%clk 0:01:06]} 20. Qxc2 {[%clk 0:02:07]}  Ba6 {[%clk 0:01:06]} 21. Ba3 {[%clk 0:01:56]}  Bxf1 {[%clk 0:01:05]} 22. Rxf1 {[%clk 0:01:56]}  Rac8 {[%clk 0:01:03]} 23. Bc5 {[%clk 0:01:55]}  e5 {[%clk 0:01:02]} 24. Bxa7 {[%clk 0:01:53]}  c5 {[%clk 0:01:02]} 25. Bxc5 {[%clk 0:01:52]}  e4 {[%clk 0:01:00]} 26. b4 {[%clk 0:01:51]}  e3 {[%clk 0:00:57]} 27. fxe3 {[%clk 0:01:50]}  Rxe3 {[%clk 0:00:56]} 28. Qf5 {[%clk 0:01:44]} 1-0


[Site "https://www.chess.com"]

[Event "Titled Tuesday Blitz April 26 Early 2022"]
[White "Riehle, Marco"]
[Black "Donchenko, Alexander"]
[WhiteFideId "12904392"]
[BlackFideId "24603295"]
[WhiteElo "2462"]
[BlackElo "2539"]
[Result "1-0"]
[Round "11"]
[TimeControl "180+1"]
[Date "2022.04.26"]
[WhiteClock "0:00:22"]
[BlackClock "0:00:01"]

1. e4 {[%clk 0:03:00]}  c6 {[%clk 0:03:00]} 2. c4 {[%clk 0:03:01]}  d5 {[%clk 0:03:01]} 3. exd5 {[%clk 0:03:02]}  cxd5 {[%clk 0:03:02]} 4. cxd5 {[%clk 0:03:02]}  Nf6 {[%clk 0:03:02]} 5. Nc3 {[%clk 0:03:03]}  Nxd5 {[%clk 0:03:03]} 6. Nf3 {[%clk 0:03:03]}  Nc6 {[%clk 0:03:03]} 7. Bb5 {[%clk 0:03:02]}  g6 {[%clk 0:03:02]} 8. Qa4 {[%clk 0:03:00]}  Qd6 {[%clk 0:03:00]} 9. Qd4 {[%clk 0:03:00]}  Nf6 {[%clk 0:02:55]} 10. Qxd6 {[%clk 0:02:59]}  exd6 {[%clk 0:02:56]} 11. d4 {[%clk 0:02:55]}  a6 {[%clk 0:02:52]} 12. Bxc6+ {[%clk 0:02:54]}  bxc6 {[%clk 0:02:53]} 13. O-O {[%clk 0:02:53]}  Bg7 {[%clk 0:02:50]} 14. Re1+ {[%clk 0:02:51]}  Be6 {[%clk 0:02:48]} 15. Bf4 {[%clk 0:02:48]}  Kd7 {[%clk 0:02:45]} 16. Ng5 {[%clk 0:02:48]}  Rab8 {[%clk 0:02:40]} 17. b3 {[%clk 0:02:46]}  Nd5 {[%clk 0:02:38]} 18. Nxe6 {[%clk 0:02:43]}  fxe6 {[%clk 0:02:39]} 19. Nxd5 {[%clk 0:02:43]}  cxd5 {[%clk 0:02:39]} 20. Be3 {[%clk 0:02:41]}  Rhc8 {[%clk 0:02:38]} 21. Rec1 {[%clk 0:02:41]}  e5 {[%clk 0:02:37]} 22. Kf1 {[%clk 0:02:36]}  exd4 {[%clk 0:02:34]} 23. Bf4 {[%clk 0:02:31]}  d3 {[%clk 0:02:32]} 24. Rxc8 {[%clk 0:02:28]}  Rxc8 {[%clk 0:02:33]} 25. Rc1 {[%clk 0:02:27]}  Rc2 {[%clk 0:02:28]} 26. Rxc2 {[%clk 0:02:25]}  dxc2 {[%clk 0:02:29]} 27. Bc1 {[%clk 0:02:25]}  Be5 {[%clk 0:01:12]} 28. f4 {[%clk 0:02:22]}  Bd4 {[%clk 0:01:06]} 29. Ke2 {[%clk 0:02:19]}  h5 {[%clk 0:01:02]} 30. Kd3 {[%clk 0:02:14]}  Bg1 {[%clk 0:01:02]} 31. h3 {[%clk 0:02:13]}  Ke6 {[%clk 0:00:53]} 32. g4 {[%clk 0:02:11]}  hxg4 {[%clk 0:00:50]} 33. hxg4 {[%clk 0:02:12]}  d4 {[%clk 0:00:42]} 34. Kxc2 {[%clk 0:02:12]}  Kd5 {[%clk 0:00:42]} 35. Kd3 {[%clk 0:02:12]}  Bh2 {[%clk 0:00:43]} 36. Bd2 {[%clk 0:02:07]}  Bg3 {[%clk 0:00:43]} 37. b4 {[%clk 0:02:05]}  Bh2 {[%clk 0:00:43]} 38. a4 {[%clk 0:02:04]}  Bg3 {[%clk 0:00:44]} 39. f5 {[%clk 0:01:49]}  gxf5 {[%clk 0:00:43]} 40. gxf5 {[%clk 0:01:47]}  Be5 {[%clk 0:00:32]} 41. Bg5 {[%clk 0:01:43]}  Kc6 {[%clk 0:00:16]} 42. f6 {[%clk 0:01:07]}  d5 {[%clk 0:00:16]} 43. f7 {[%clk 0:00:52]}  Bd6 {[%clk 0:00:17]} 44. Bd2 {[%clk 0:00:53]}  Kd7 {[%clk 0:00:16]} 45. Kxd4 {[%clk 0:00:50]}  Ke6 {[%clk 0:00:16]} 46. b5 {[%clk 0:00:46]}  axb5 {[%clk 0:00:14]} 47. a5 {[%clk 0:00:47]}  Kxf7 {[%clk 0:00:13]} 48. a6 {[%clk 0:00:45]}  Bb8 {[%clk 0:00:07]} 49. Kxd5 {[%clk 0:00:42]}  Ke8 {[%clk 0:00:03]} 50. Kc6 {[%clk 0:00:40]}  Ba7 {[%clk 0:00:03]} 51. Kb7 {[%clk 0:00:38]}  Bd4 {[%clk 0:00:02]} 52. Bc3 {[%clk 0:00:34]}  Be3 {[%clk 0:00:02]} 53. Ba5 {[%clk 0:00:27]}  b4 {[%clk 0:00:01]} 54. Bxb4 {[%clk 0:00:23]}  Kd7 {[%clk 0:00:01]} 55. Ba5 {[%clk 0:00:22]} 1-0


[Site "https://www.chess.com"]

[Event "Titled Tuesday Blitz April 26 Early 2022"]
[White "Ronka, Erik"]
[Black "Todorovic, Bojan"]
[WhiteFideId "505080"]
[BlackFideId "917087"]
[WhiteElo "2264"]
[BlackElo "2266"]
[Result "0-1"]
[Round "11"]
[TimeControl "180+1"]
[Date "2022.04.26"]
[WhiteClock "0:00:57"]
[BlackClock "0:00:44"]

1. d4 {[%clk 0:03:00]}  d5 {[%clk 0:02:58]} 2. Nf3 {[%clk 0:03:00]}  Nf6 {[%clk 0:02:58]} 3. g3 {[%clk 0:03:01]}  Bf5 {[%clk 0:02:55]} 4. Bg2 {[%clk 0:03:01]}  e6 {[%clk 0:02:55]} 5. c4 {[%clk 0:03:01]}  c6 {[%clk 0:02:52]} 6. Qb3 {[%clk 0:02:55]}  Qb6 {[%clk 0:02:51]} 7. Nc3 {[%clk 0:02:53]}  Nbd7 {[%clk 0:02:50]} 8. c5 {[%clk 0:02:50]}  Qxb3 {[%clk 0:02:36]} 9. axb3 {[%clk 0:02:51]}  a6 {[%clk 0:02:34]} 10. b4 {[%clk 0:02:50]}  Rc8 {[%clk 0:02:32]} 11. h3 {[%clk 0:02:49]}  h6 {[%clk 0:02:32]} 12. g4 {[%clk 0:02:48]}  Bh7 {[%clk 0:02:31]} 13. Bf4 {[%clk 0:02:49]}  g5 {[%clk 0:02:24]} 14. Bg3 {[%clk 0:02:47]}  Ne4 {[%clk 0:02:21]} 15. Bh2 {[%clk 0:02:37]}  Bg7 {[%clk 0:02:15]} 16. e3 {[%clk 0:02:34]}  O-O {[%clk 0:02:09]} 17. Nd2 {[%clk 0:02:34]}  f5 {[%clk 0:02:08]} 18. f3 {[%clk 0:02:17]}  Nxd2 {[%clk 0:01:56]} 19. Kxd2 {[%clk 0:02:18]}  e5 {[%clk 0:01:54]} 20. Ne2 {[%clk 0:02:07]}  f4 {[%clk 0:01:52]} 21. exf4 {[%clk 0:02:05]}  exf4 {[%clk 0:01:48]} 22. Bg1 {[%clk 0:02:05]}  Rfe8 {[%clk 0:01:41]} 23. Bf2 {[%clk 0:02:05]}  Nf8 {[%clk 0:01:36]} 24. h4 {[%clk 0:02:04]}  Ne6 {[%clk 0:01:35]} 25. hxg5 {[%clk 0:01:55]}  hxg5 {[%clk 0:01:34]} 26. Rhd1 {[%clk 0:01:33]}  Bg6 {[%clk 0:01:30]} 27. Kc3 {[%clk 0:01:33]}  Nc7 {[%clk 0:01:03]} 28. Re1 {[%clk 0:01:21]}  Nb5+ {[%clk 0:01:00]} 29. Kd2 {[%clk 0:01:17]}  Kf7 {[%clk 0:00:59]} 30. Rad1 {[%clk 0:01:08]}  Rh8 {[%clk 0:00:57]} 31. Rh1 {[%clk 0:01:04]}  Ra8 {[%clk 0:00:50]} 32. Ra1 {[%clk 0:01:02]}  Rxh1 {[%clk 0:00:48]} 33. Bxh1 {[%clk 0:01:02]}  Rh8 {[%clk 0:00:46]} 34. Bg1 {[%clk 0:00:57]}  Rxh1 {[%clk 0:00:44]} 0-1


[Site "https://www.chess.com"]

[Event "Titled Tuesday Blitz April 26 Early 2022"]
[White "Safarli, Eltaj"]
[Black "Esipenko, Andrey"]
[WhiteFideId "13402129"]
[BlackFideId "24175439"]
[WhiteElo "2634"]
[BlackElo "2617"]
[Result "0-1"]
[Round "11"]
[TimeControl "180+1"]
[Date "2022.04.26"]
[WhiteClock "0:00:04"]
[BlackClock "0:00:06"]

1. e4 {[%clk 0:03:00]}  e5 {[%clk 0:02:59]} 2. Nf3 {[%clk 0:03:00]}  Nc6 {[%clk 0:03:00]} 3. Bb5 {[%clk 0:03:01]}  Nf6 {[%clk 0:03:00]} 4. O-O {[%clk 0:02:59]}  Nxe4 {[%clk 0:03:00]} 5. d4 {[%clk 0:03:00]}  exd4 {[%clk 0:03:00]} 6. Re1 {[%clk 0:02:51]}  f5 {[%clk 0:03:00]} 7. Nxd4 {[%clk 0:02:46]}  Nxd4 {[%clk 0:03:01]} 8. Qxd4 {[%clk 0:02:45]}  c6 {[%clk 0:03:01]} 9. Qe5+ {[%clk 0:02:05]}  Kf7 {[%clk 0:02:50]} 10. Qxf5+ {[%clk 0:01:58]}  Nf6 {[%clk 0:02:49]} 11. Bd3 {[%clk 0:01:54]}  d5 {[%clk 0:02:50]} 12. Qf3 {[%clk 0:01:54]}  Bg4 {[%clk 0:02:50]} 13. Qg3 {[%clk 0:01:51]}  Bd6 {[%clk 0:02:27]} 14. Bf4 {[%clk 0:01:51]}  Bxf4 {[%clk 0:02:25]} 15. Qxf4 {[%clk 0:01:52]}  Qb8 {[%clk 0:02:23]} 16. Qb4 {[%clk 0:01:46]}  Qc7 {[%clk 0:02:16]} 17. Nd2 {[%clk 0:01:46]}  Rhe8 {[%clk 0:02:15]} 18. h3 {[%clk 0:01:46]}  Bh5 {[%clk 0:02:13]} 19. Qh4 {[%clk 0:01:29]}  h6 {[%clk 0:01:51]} 20. Nf1 {[%clk 0:01:21]}  Bg6 {[%clk 0:01:51]} 21. Bxg6+ {[%clk 0:01:16]}  Kxg6 {[%clk 0:01:52]} 22. Ng3 {[%clk 0:01:15]}  Qd6 {[%clk 0:01:50]} 23. Qd4 {[%clk 0:01:12]}  c5 {[%clk 0:01:35]} 24. Qd3+ {[%clk 0:01:11]}  Kf7 {[%clk 0:01:36]} 25. Nf5 {[%clk 0:01:07]}  Qd7 {[%clk 0:01:36]} 26. Qf3 {[%clk 0:01:05]}  Rad8 {[%clk 0:01:31]} 27. c3 {[%clk 0:00:59]}  b6 {[%clk 0:01:32]} 28. Rad1 {[%clk 0:00:59]}  Re6 {[%clk 0:01:25]} 29. Ne3 {[%clk 0:00:47]}  d4 {[%clk 0:00:59]} 30. cxd4 {[%clk 0:00:44]}  cxd4 {[%clk 0:01:00]} 31. Ng4 {[%clk 0:00:42]}  Qd5 {[%clk 0:00:48]} 32. Qf4 {[%clk 0:00:29]}  Qd6 {[%clk 0:00:34]} 33. Qf5 {[%clk 0:00:26]}  Rxe1+ {[%clk 0:00:34]} 34. Rxe1 {[%clk 0:00:26]}  d3 {[%clk 0:00:35]} 35. Ne5+ {[%clk 0:00:11]}  Kg8 {[%clk 0:00:36]} 36. Rd1 {[%clk 0:00:12]}  d2 {[%clk 0:00:32]} 37. Nf3 {[%clk 0:00:12]}  Qe7 {[%clk 0:00:25]} 38. Rxd2 {[%clk 0:00:08]}  Rxd2 {[%clk 0:00:23]} 39. Nxd2 {[%clk 0:00:09]}  Qe2 {[%clk 0:00:23]} 40. Nf1 {[%clk 0:00:09]}  Qxb2 {[%clk 0:00:23]} 41. Qe6+ {[%clk 0:00:08]}  Kh8 {[%clk 0:00:21]} 42. Ne3 {[%clk 0:00:07]}  Qc1+ {[%clk 0:00:18]} 43. Kh2 {[%clk 0:00:07]}  Qc7+ {[%clk 0:00:18]} 44. g3 {[%clk 0:00:07]}  b5 {[%clk 0:00:07]} 45. h4 {[%clk 0:00:05]}  a5 {[%clk 0:00:08]} 46. Kg2 {[%clk 0:00:06]}  b4 {[%clk 0:00:08]} 47. g4 {[%clk 0:00:06]}  Qb7+ {[%clk 0:00:06]} 48. f3 {[%clk 0:00:06]}  Qd7 {[%clk 0:00:03]} 49. Qe5 {[%clk 0:00:04]}  Qd2+ {[%clk 0:00:02]} 50. Kg3 {[%clk 0:00:05]}  Qd8 {[%clk 0:00:02]} 51. g5 {[%clk 0:00:03]}  Nd7 {[%clk 0:00:03]} 52. Qd6 {[%clk 0:00:02]}  hxg5 {[%clk 0:00:03]} 53. h5 {[%clk 0:00:02]}  Qb8 {[%clk 0:00:04]} 54. Qxb8+ {[%clk 0:00:02]}  Nxb8 {[%clk 0:00:05]} 55. Nc4 {[%clk 0:00:02]}  a4 {[%clk 0:00:05]} 56. Kg4 {[%clk 0:00:03]}  Nc6 {[%clk 0:00:05]} 57. Kxg5 {[%clk 0:00:03]}  Nd4 {[%clk 0:00:06]} 58. Kf4 {[%clk 0:00:03]}  Nb5 {[%clk 0:00:07]} 59. Ke5 {[%clk 0:00:03]}  a3 {[%clk 0:00:06]} 60. Kd5 {[%clk 0:00:03]}  Nc3+ {[%clk 0:00:07]} 61. Kc5 {[%clk 0:00:03]}  Nxa2 {[%clk 0:00:08]} 62. Nd2 {[%clk 0:00:04]}  Nc1 {[%clk 0:00:06]} 0-1


[Site "https://www.chess.com"]

[Event "Titled Tuesday Blitz April 26 Early 2022"]
[White "Salimova, Nurgyul"]
[Black "Richter, Nils"]
[WhiteFideId "2915138"]
[BlackFideId "12990809"]
[WhiteElo "2185"]
[BlackElo "2243"]
[Result "1-0"]
[Round "11"]
[TimeControl "180+1"]
[Date "2022.04.26"]
[WhiteClock "0:00:12"]
[BlackClock "0:00:36"]

1. d4 {[%clk 0:03:00]}  d5 {[%clk 0:02:55]} 2. c4 {[%clk 0:03:00]}  c6 {[%clk 0:02:55]} 3. cxd5 {[%clk 0:02:57]}  cxd5 {[%clk 0:02:55]} 4. Bf4 {[%clk 0:02:57]}  Nc6 {[%clk 0:02:55]} 5. e3 {[%clk 0:02:57]}  a6 {[%clk 0:02:54]} 6. Nc3 {[%clk 0:02:56]}  Nf6 {[%clk 0:02:54]} 7. Be2 {[%clk 0:02:52]}  Bf5 {[%clk 0:02:53]} 8. Nf3 {[%clk 0:02:24]}  e6 {[%clk 0:02:52]} 9. Qb3 {[%clk 0:02:16]}  Ra7 {[%clk 0:02:33]} 10. O-O {[%clk 0:02:13]}  Bd6 {[%clk 0:02:32]} 11. Ne5 {[%clk 0:02:03]}  Bxe5 {[%clk 0:02:26]} 12. dxe5 {[%clk 0:02:04]}  Nd7 {[%clk 0:02:25]} 13. Rfd1 {[%clk 0:01:58]}  O-O {[%clk 0:02:23]} 14. Rac1 {[%clk 0:00:57]}  Qe7 {[%clk 0:02:17]} 15. Na4 {[%clk 0:00:33]}  Ndxe5 {[%clk 0:02:13]} 16. Nb6 {[%clk 0:00:33]}  Nd7 {[%clk 0:02:07]} 17. Nxd7 {[%clk 0:00:27]}  Qxd7 {[%clk 0:02:07]} 18. Qb6 {[%clk 0:00:28]}  Raa8 {[%clk 0:02:03]} 19. h4 {[%clk 0:00:17]}  h6 {[%clk 0:02:02]} 20. h5 {[%clk 0:00:16]}  Rfc8 {[%clk 0:01:59]} 21. Bf3 {[%clk 0:00:15]}  Qd8 {[%clk 0:01:55]} 22. Qb3 {[%clk 0:00:10]}  Qe7 {[%clk 0:01:48]} 23. Qb6 {[%clk 0:00:08]}  e5 {[%clk 0:01:39]} 24. Bg3 {[%clk 0:00:07]}  e4 {[%clk 0:01:40]} 25. Be2 {[%clk 0:00:08]}  Be6 {[%clk 0:01:38]} 26. a3 {[%clk 0:00:07]}  Rd8 {[%clk 0:01:34]} 27. Rc2 {[%clk 0:00:07]}  Rac8 {[%clk 0:01:34]} 28. Rcd2 {[%clk 0:00:07]}  Nb8 {[%clk 0:01:21]} 29. Rd4 {[%clk 0:00:06]}  Nd7 {[%clk 0:01:20]} 30. Qxb7 {[%clk 0:00:06]}  Qf6 {[%clk 0:01:11]} 31. Bxa6 {[%clk 0:00:06]}  Nc5 {[%clk 0:01:09]} 32. Qb6 {[%clk 0:00:06]}  Nxa6 {[%clk 0:01:04]} 33. Qxa6 {[%clk 0:00:07]}  Rc2 {[%clk 0:01:03]} 34. b4 {[%clk 0:00:05]}  Rdc8 {[%clk 0:01:02]} 35. b5 {[%clk 0:00:04]}  Rc1 {[%clk 0:01:01]} 36. b6 {[%clk 0:00:05]}  Bg4 {[%clk 0:00:48]} 37. Rxc1 {[%clk 0:00:04]}  Rxc1+ {[%clk 0:00:48]} 38. Kh2 {[%clk 0:00:04]}  Qf5 {[%clk 0:00:47]} 39. Qa8+ {[%clk 0:00:04]}  Kh7 {[%clk 0:00:44]} 40. Qxd5 {[%clk 0:00:05]}  Rb1 {[%clk 0:00:44]} 41. Qxf5+ {[%clk 0:00:05]}  Bxf5 {[%clk 0:00:44]} 42. Rb4 {[%clk 0:00:05]}  Rxb4 {[%clk 0:00:44]} 43. axb4 {[%clk 0:00:06]}  Bc8 {[%clk 0:00:44]} 44. Be5 {[%clk 0:00:06]}  f6 {[%clk 0:00:42]} 45. Bd4 {[%clk 0:00:06]}  Kg8 {[%clk 0:00:42]} 46. Kg3 {[%clk 0:00:07]}  Kf7 {[%clk 0:00:42]} 47. Kf4 {[%clk 0:00:08]}  Bb7 {[%clk 0:00:43]} 48. Bc5 {[%clk 0:00:08]}  Ke6 {[%clk 0:00:42]} 49. f3 {[%clk 0:00:09]}  exf3 {[%clk 0:00:42]} 50. gxf3 {[%clk 0:00:09]}  f5 {[%clk 0:00:41]} 51. Bf8 {[%clk 0:00:09]}  Kf7 {[%clk 0:00:40]} 52. Bc5 {[%clk 0:00:10]}  g6 {[%clk 0:00:40]} 53. hxg6+ {[%clk 0:00:10]}  Kxg6 {[%clk 0:00:41]} 54. e4 {[%clk 0:00:09]}  fxe4 {[%clk 0:00:41]} 55. fxe4 {[%clk 0:00:10]}  Kf7 {[%clk 0:00:42]} 56. Ke5 {[%clk 0:00:10]}  h5 {[%clk 0:00:41]} 57. Bf2 {[%clk 0:00:10]}  Ke8 {[%clk 0:00:39]} 58. Bh4 {[%clk 0:00:11]}  Kd7 {[%clk 0:00:39]} 59. b5 {[%clk 0:00:11]}  Ba8 {[%clk 0:00:38]} 60. Kf5 {[%clk 0:00:11]}  Bxe4+ {[%clk 0:00:35]} 61. Kxe4 {[%clk 0:00:11]}  Kc8 {[%clk 0:00:36]} 62. Kd5 {[%clk 0:00:12]}  Kb7 {[%clk 0:00:37]} 63. Kc5 {[%clk 0:00:12]}  Ka8 {[%clk 0:00:36]} 64. Kc6 {[%clk 0:00:13]}  Kb8 {[%clk 0:00:36]} 65. Bg3+ {[%clk 0:00:11]}  Ka8 {[%clk 0:00:36]} 66. b7+ {[%clk 0:00:11]}  Ka7 {[%clk 0:00:36]} 67. b8=Q# {[%clk 0:00:12]} 1-0


[Site "https://www.chess.com"]

[Event "Titled Tuesday Blitz April 26 Early 2022"]
[White "Sarana, Alexey"]
[Black "Narayanan, Srinath"]
[WhiteFideId "24133795"]
[BlackFideId "5018420"]
[WhiteElo "2666"]
[BlackElo "2472"]
[Result "1-0"]
[Round "11"]
[TimeControl "180+1"]
[Date "2022.04.26"]
[WhiteClock "0:01:27"]
[BlackClock "0:00:04"]

1. d4 {[%clk 0:02:56]}  Nf6 {[%clk 0:02:59]} 2. c4 {[%clk 0:02:56]}  e6 {[%clk 0:02:59]} 3. Nc3 {[%clk 0:02:57]}  d5 {[%clk 0:03:00]} 4. cxd5 {[%clk 0:02:56]}  exd5 {[%clk 0:02:59]} 5. Bg5 {[%clk 0:02:57]}  c6 {[%clk 0:02:57]} 6. e3 {[%clk 0:02:57]}  h6 {[%clk 0:02:57]} 7. Bh4 {[%clk 0:02:57]}  Bd6 {[%clk 0:02:56]} 8. Bd3 {[%clk 0:02:52]}  O-O {[%clk 0:02:56]} 9. Nge2 {[%clk 0:02:51]}  Re8 {[%clk 0:02:55]} 10. h3 {[%clk 0:02:47]}  Nbd7 {[%clk 0:02:54]} 11. O-O {[%clk 0:02:47]}  Nf8 {[%clk 0:02:54]} 12. Qd2 {[%clk 0:02:43]}  Ng6 {[%clk 0:02:54]} 13. Bg3 {[%clk 0:02:41]}  Ne4 {[%clk 0:02:52]} 14. Bxe4 {[%clk 0:02:36]}  dxe4 {[%clk 0:02:53]} 15. a3 {[%clk 0:02:21]}  Nh4 {[%clk 0:02:44]} 16. Qc2 {[%clk 0:02:16]}  Bf5 {[%clk 0:02:12]} 17. b4 {[%clk 0:02:09]}  Re6 {[%clk 0:02:08]} 18. Bxd6 {[%clk 0:02:03]}  Qxd6 {[%clk 0:01:56]} 19. Ng3 {[%clk 0:02:04]}  Rae8 {[%clk 0:01:55]} 20. Nce2 {[%clk 0:02:02]}  Rf6 {[%clk 0:01:41]} 21. Qc5 {[%clk 0:02:00]}  Qd7 {[%clk 0:01:40]} 22. Nf4 {[%clk 0:01:59]}  b6 {[%clk 0:01:30]} 23. Qc4 {[%clk 0:01:55]}  Ng6 {[%clk 0:01:08]} 24. Nfh5 {[%clk 0:01:44]}  Rd6 {[%clk 0:01:07]} 25. Nxf5 {[%clk 0:01:44]}  Qxf5 {[%clk 0:01:08]} 26. Ng3 {[%clk 0:01:44]}  Qg5 {[%clk 0:01:07]} 27. a4 {[%clk 0:01:42]}  Nh4 {[%clk 0:00:55]} 28. b5 {[%clk 0:01:41]}  Ree6 {[%clk 0:00:43]} 29. bxc6 {[%clk 0:01:39]}  Rxc6 {[%clk 0:00:44]} 30. Qb5 {[%clk 0:01:39]}  Qd8 {[%clk 0:00:34]} 31. a5 {[%clk 0:01:36]}  bxa5 {[%clk 0:00:30]} 32. Qxa5 {[%clk 0:01:36]}  Qxa5 {[%clk 0:00:06]} 33. Rxa5 {[%clk 0:01:37]}  Rc2 {[%clk 0:00:03]} 34. Rxa7 {[%clk 0:01:32]}  g5 {[%clk 0:00:03]} 35. d5 {[%clk 0:01:29]}  Re5 {[%clk 0:00:04]} 36. d6 {[%clk 0:01:29]}  Rd2 {[%clk 0:00:04]} 37. d7 {[%clk 0:01:28]}  Nf5 {[%clk 0:00:03]} 38. Ra8+ {[%clk 0:01:26]}  Kg7 {[%clk 0:00:03]} 39. d8=Q {[%clk 0:01:26]}  Rxd8 {[%clk 0:00:04]} 40. Rxd8 {[%clk 0:01:26]}  Nxg3 {[%clk 0:00:04]} 41. fxg3 {[%clk 0:01:27]} 1-0


[Site "https://www.chess.com"]

[Event "Titled Tuesday Blitz April 26 Early 2022"]
[White "Sihite, Chelsie Monica Ignesias"]
[Black "Kucuksari, Kaan"]
[WhiteFideId "7101198"]
[BlackFideId "6380166"]
[WhiteElo "2224"]
[BlackElo "2305"]
[Result "0-1"]
[Round "11"]
[TimeControl "180+1"]
[Date "2022.04.26"]
[WhiteClock "0:02:48"]
[BlackClock "0:02:39"]

1. e4 {[%clk 0:03:00]}  c5 {[%clk 0:02:59]} 2. Nf3 {[%clk 0:03:00]}  Nc6 {[%clk 0:03:00]} 3. Bb5 {[%clk 0:03:01]}  g6 {[%clk 0:03:00]} 4. Bxc6 {[%clk 0:03:01]}  bxc6 {[%clk 0:03:00]} 5. O-O {[%clk 0:03:02]}  Bg7 {[%clk 0:03:00]} 6. Re1 {[%clk 0:03:03]}  e5 {[%clk 0:02:57]} 7. h3 {[%clk 0:03:04]}  Ne7 {[%clk 0:02:55]} 8. b3 {[%clk 0:03:04]}  O-O {[%clk 0:02:54]} 9. Nc3 {[%clk 0:03:05]}  d6 {[%clk 0:02:50]} 10. Ne2 {[%clk 0:03:04]}  f5 {[%clk 0:02:49]} 11. d3 {[%clk 0:03:05]}  d5 {[%clk 0:02:44]} 12. exf5 {[%clk 0:03:03]}  e4 {[%clk 0:02:43]} 13. Nd2 {[%clk 0:02:52]}  Bxa1 {[%clk 0:02:38]} 14. c3 {[%clk 0:02:53]}  exd3 {[%clk 0:02:38]} 15. Nf4 {[%clk 0:02:53]}  Bxc3 {[%clk 0:02:37]} 16. Nxd3 {[%clk 0:02:52]}  Bxf5 {[%clk 0:02:37]} 17. Nxc5 {[%clk 0:02:52]}  Bd4 {[%clk 0:02:38]} 18. Ba3 {[%clk 0:02:49]}  Bxf2+ {[%clk 0:02:38]} 19. Kxf2 {[%clk 0:02:48]}  Bc2+ {[%clk 0:02:39]} 0-1


[Site "https://www.chess.com"]

[Event "Titled Tuesday Blitz April 26 Early 2022"]
[White "Skliarov, Viktor"]
[Black "Demin, Vladimir"]
[WhiteFideId "14106736"]
[BlackFideId "4167457"]
[WhiteElo "2229"]
[BlackElo "2417"]
[Result "0-1"]
[Round "11"]
[TimeControl "180+1"]
[Date "2022.04.26"]
[WhiteClock "0:00:03"]
[BlackClock "0:00:38"]

1. e4 {[%clk 0:03:00]}  Nf6 {[%clk 0:02:58]} 2. Nc3 {[%clk 0:03:01]}  d5 {[%clk 0:02:54]} 3. exd5 {[%clk 0:03:01]}  Nxd5 {[%clk 0:02:51]} 4. Bc4 {[%clk 0:03:01]}  c6 {[%clk 0:02:48]} 5. Qf3 {[%clk 0:03:01]}  e6 {[%clk 0:02:47]} 6. d4 {[%clk 0:03:01]}  Bb4 {[%clk 0:02:44]} 7. Ne2 {[%clk 0:03:00]}  Nd7 {[%clk 0:02:41]} 8. O-O {[%clk 0:03:00]}  O-O {[%clk 0:02:41]} 9. Ne4 {[%clk 0:02:58]}  h6 {[%clk 0:02:39]} 10. a3 {[%clk 0:02:54]}  Be7 {[%clk 0:02:38]} 11. Bd3 {[%clk 0:02:54]}  f5 {[%clk 0:02:19]} 12. N4c3 {[%clk 0:02:30]}  Nxc3 {[%clk 0:01:52]} 13. Nxc3 {[%clk 0:02:25]}  e5 {[%clk 0:01:53]} 14. Bc4+ {[%clk 0:02:00]}  Kh8 {[%clk 0:01:51]} 15. d5 {[%clk 0:02:00]}  e4 {[%clk 0:01:49]} 16. Qe2 {[%clk 0:01:55]}  Ne5 {[%clk 0:01:48]} 17. Bb3 {[%clk 0:01:53]}  Bc5 {[%clk 0:01:40]} 18. Na4 {[%clk 0:01:34]}  Bd6 {[%clk 0:01:40]} 19. Bf4 {[%clk 0:00:24]}  Ng6 {[%clk 0:01:33]} 20. Bxd6 {[%clk 0:00:23]}  Qxd6 {[%clk 0:01:34]} 21. dxc6 {[%clk 0:00:19]}  Nf4 {[%clk 0:01:34]} 22. Qe3 {[%clk 0:00:17]}  bxc6 {[%clk 0:01:20]} 23. Rfd1 {[%clk 0:00:16]}  Qc7 {[%clk 0:01:21]} 24. Nc5 {[%clk 0:00:15]}  Ng6 {[%clk 0:01:16]} 25. Ne6 {[%clk 0:00:14]}  Bxe6 {[%clk 0:01:16]} 26. Bxe6 {[%clk 0:00:15]}  Qe5 {[%clk 0:01:13]} 27. Bc4 {[%clk 0:00:12]}  f4 {[%clk 0:01:12]} 28. Qd4 {[%clk 0:00:12]}  Qg5 {[%clk 0:01:12]} 29. Bf1 {[%clk 0:00:11]}  e3 {[%clk 0:01:02]} 30. fxe3 {[%clk 0:00:10]}  fxe3 {[%clk 0:01:02]} 31. Re1 {[%clk 0:00:11]}  Rae8 {[%clk 0:00:58]} 32. Rad1 {[%clk 0:00:10]}  Nh4 {[%clk 0:00:50]} 33. Kh1 {[%clk 0:00:05]}  Nf5 {[%clk 0:00:48]} 34. Qc5 {[%clk 0:00:02]}  Ng3+ {[%clk 0:00:45]} 35. hxg3 {[%clk 0:00:02]}  Qxc5 {[%clk 0:00:45]} 36. Be2 {[%clk 0:00:03]}  Qg5 {[%clk 0:00:44]} 37. Bf3 {[%clk 0:00:03]}  Qxg3 {[%clk 0:00:44]} 38. Re2 {[%clk 0:00:03]}  Qh4+ {[%clk 0:00:41]} 39. Kg1 {[%clk 0:00:03]}  Re5 {[%clk 0:00:41]} 40. Rd7 {[%clk 0:00:02]}  Rxf3 {[%clk 0:00:37]} 41. gxf3 {[%clk 0:00:02]}  Rg5+ {[%clk 0:00:37]} 42. Rg2 {[%clk 0:00:03]}  Qf2+ {[%clk 0:00:38]} 43. Kh1 {[%clk 0:00:03]}  Qxg2# {[%clk 0:00:38]} 0-1


[Site "https://www.chess.com"]